[Event "1000GM Spring IM-D 2024"]
[Site "New York"]
[Date "2024.03.28"]
[Round "1.9"]
[White "Safranek, William"]
[Black "Bonin, Jay"]
[Result "1-0"]
[ECO "C41"]
[WhiteElo "1950"]
[BlackElo "2154"]
[Annotator "RC"]
[PlyCount "143"]
[EventDate "2024.03.26"]
[EventType "schev"]
[EventCountry "USA"]
[SourceTitle "playchess.com"]
[Source "ChessBase"]
[SourceQuality "1"]
[TimeControl "5400+30"]

1. e4 {[%emt 0:00:03]} e5 {[%emt 0:00:07]} 2. Nf3 {[%emt 0:00:05]} Qe7 {[%emt 0:00:03]} 3. d4 {[%emt 0:00:05]} d6 {[%emt 0:00:08]} 4. Nc3 {[%emt 0:00:07]} c6 {[%emt 0:00:04]} 5. a4 {[%emt 0:00:10]} a5 {[%emt 0:00:28]} 6. Bc4 {[%emt 0:01:33]} h6 {[%emt 0:01:20]} 7. O-O {[%emt 0:01:51]} g6 {[%emt 0:00:56]} 8. b3 {[%emt 0:02:19]} Nf6 {[%emt 0:01:39]} 9. Ba3 {[%emt 0:05:00]} Qc7 {[%emt 0:00:10]} 10. Qd2 {[%emt 0:03:03]} Na6 {[%emt 0:06:25]} 11. Rad1 {[%emt 0:01:35]} Bd7 {[%emt 0:00:54]} 12. dxe5 {[%emt 0:05:33]} dxe5 {[%emt 0:00:05]} 13. Bd6 {[%emt 0:00:11]} Bxd6 {[%emt 0:01:35]} 14. Qxd6 {[%emt 0:00:03]} Qxd6 {[%emt 0:00:17]} 15. Rd3 {[%emt 1:16:22]} Qd5 16. Rxd5 {[%emt 0:00:00]} Ke7 {[%emt 0:00:38]} 17. Rd2 {[%emt 0:00:00]} Nc5 {[%emt 0:01:21]} 18. Nxe5 {[%emt 0:00:00]} Be6 {[%emt 0:00:12]} 19. f3 {[%emt 0:00:00]} Rhd8 {[%emt 0:00:36]} 20. Rfd1 {[%emt 0:00:00]} Rxd2 {[%emt 0:00:34]} 21. Rxd2 {[%emt 0:00:00]} g5 {[%emt 0:00:44]} 22. Bxe6 {[%emt 0:00:00]} Kxe6 {[%emt 0:00:50]} 23. Nc4 {[%emt 0:00:00]} Ne8 {[%emt 0:02:19]} 24. Ne2 {[%emt 0:00:00]} h5 {[%emt 0:02:02]} 25. Kf2 {[%emt 0:00:00]} h4 {[%emt 0:02:03]} 26. Ke3 {[%emt 0:00:00]} Ke7 {[%emt 0:01:04]} 27. g3 {[%emt 0:00:00]} hxg3 {[%emt 0:02:12]} 28. hxg3 {[%emt 0:00:00]} Nf6 {[%emt 0:01:43]} 29. Nd4 {[%emt 0:00:00]} Kf8 {[%emt 0:04:59]} 30. Nf5 {[%emt 0:00:00]} b5 {[%emt 0:02:24]} 31. Ne5 {[%emt 0:00:00]} bxa4 {[%emt 0:01:56]} 32. bxa4 {[%emt 0:00:00]} Nxa4 {[%emt 0:00:32]} 33. Rh2 {[%emt 0:00:00]} Nb6 {[%emt 0:01:21]} 34. Rh8+ {[%emt 0:00:00]} Ng8 {[%emt 0:00:02]} 35. Rh7 {[%emt 0:00:00]} Ra7 {[%emt 0:00:11]} 36. Ng6+ {[%emt 0:00:00]} fxg6 {[%emt 0:00:22]} 37. Rxa7 {[%emt 0:00:00]} gxf5 {[%emt 0:00:03]} 38. exf5 {[%emt 0:00:00]} Nf6 {[%emt 0:09:51]} 39. Kd4 {[%emt 0:00:00]} Nbd7 {[%emt 0:05:15]} 40. Rxa5 {[%emt 0:00:00]} Ke7 {[%emt 0:00:49]} 41. c4 {[%emt 0:03:23]} Kd6 {[%emt 0:07:47]} 42. c5+ {[%emt 0:01:12]} Kc7 {[%emt 0:00:17]} 43. Ra7+ {[%emt 0:00:04]} Kb8 {[%emt 0:00:03]} 44. Ra2 {[%emt 0:00:55]} Kb7 {[%emt 0:00:23]} 45. Rh2 {[%emt 0:00:37]} Ka6 {[%emt 0:02:05]} 46. Rh6 {[%emt 0:01:17]} Kb5 {[%emt 0:00:19]} 47. Rg6 {[%emt 0:00:42]} Nd5 {[%emt 0:00:13]} 48. Rxg5 {[%emt 0:01:55]} Nxc5 {[%emt 0:00:10]} 49. Rg8 {[%emt 0:01:01]} Nd7 {[%emt 0:00:36]} 50. Rd8 {[%emt 0:00:49]} N5f6 {[%emt 0:02:34]} 51. g4 {[%emt 0:00:19]} c5+ {[%emt 0:00:28]} 52. Ke3 {[%emt 0:00:32]} Kc6 {[%emt 0:01:19]} 53. g5 {[%emt 0:01:08]} Kc7 {[%emt 0:02:50]} 54. Rh8 {[%emt 0:00:04]} Nd5+ {[%emt 0:00:32]} 55. Ke4 {[%emt 0:00:06]} Ne7 {[%emt 0:01:07]} 56. f6 {[%emt 0:01:36]} Ng6 {[%emt 0:00:11]} 57. Rg8 {[%emt 0:00:16]} Ngf8 {[%emt 0:02:26]} 58. f4 {[%emt 0:01:39]} Kd6 {[%emt 0:00:52]} 59. f5 {[%emt 0:00:38]} c4 {[%emt 0:01:01]} 60. Rh8 {[%emt 0:00:05]} c3 {[%emt 0:00:50]} 61. Rh2 {[%emt 0:00:57]} Kc5 {[%emt 0:01:11]} 62. Rc2 {[%emt 0:00:14]} Kc4 {[%emt 0:00:18]} 63. f7 {[%emt 0:00:49]} Kb3 {[%emt 0:00:36]} 64. Rh2 {[%emt 0:02:12]} c2 {[%emt 0:00:53]} 65. Rh1 {[%emt 0:00:05]} Kb2 {[%emt 0:00:17]} 66. g6 {[%emt 0:00:19]} Nf6+ {[%emt 0:00:31]} 67. Kf4 {[%emt 0:00:51]} c1=Q+ {[%emt 0:01:53]} 68. Rxc1 {[%emt 0:00:03]} Kxc1 {[%emt 0:00:04]} 69. Kg5 {[%emt 0:00:22]} Ne4+ {[%emt 0:00:36]} 70. Kh4 {[%emt 0:01:15]} Nd6 {[%emt 0:00:46]} 71. Kg4 {[%emt 0:00:03]} Nd7 {[%emt 0:00:59]} 72. Kf4 {[%emt 0:00:06]} 1-0

[Event "1000GM Spring IM-D 2024"]
[Site "New York"]
[Date "2024.03.28"]
[Round "2.1"]
[White "Fedorowicz, John"]
[Black "Yoo, Eugene"]
[Result "1/2-1/2"]
[ECO "B22"]
[WhiteElo "2372"]
[BlackElo "2205"]
[Annotator "RC"]
[PlyCount "29"]
[EventDate "2024.03.26"]
[EventType "tourn"]
[EventCountry "USA"]
[SourceTitle "playchess.com"]
[Source "ChessBase"]
[SourceQuality "1"]
[TimeControl "5400+30"]

1. e4 {[%emt 0:00:53]} c5 {[%emt 0:00:59]} 2. Nf3 {[%emt 0:01:07]} Nc6 {[%emt 0:00:42]} 3. Bb5 {[%emt 0:01:11]} e5 {[%emt 0:00:17]} 4. c3 {[%emt 0:02:59]} a6 {[%emt 0:00:50]} 5. Ba4 {[%emt 0:00:51]} b5 {[%emt 0:00:06]} 6. Bc2 {[%emt 0:00:09]} d5 {[%emt 0:00:29]} 7. a4 {[%emt 0:02:55]} b4 {[%emt 0:02:15]} 8. d4 {[%emt 0:02:59]} cxd4 {[%emt 0:07:58]} 9. cxd4 {[%emt 0:01:06]} Bg4 {[%emt 0:00:23]} 10. dxe5 {[%emt 0:07:49]} Nxe5 {[%emt 0:01:14]} 11. Nbd2 {[%emt 0:17:47]} Nf6 {[%emt 0:22:22]} 12. exd5 {[%emt 0:04:19]} Bc5 {[%emt 0:21:09]} 13. h3 {[%emt 0:04:03]} Bh5 {[%emt 0:03:58]} 14. g4 {[%emt 0:07:29]} Qe7 {[%emt 0:07:35]} 15. Nxe5 {[%emt 0:09:48]} 1/2-1/2

[Event "1000GM Spring IM-D 2024"]
[Site "New York"]
[Date "2024.03.28"]
[Round "2.2"]
[White "Rohde, Michael"]
[Black "Safranek, William"]
[Result "1/2-1/2"]
[ECO "D34"]
[WhiteElo "2318"]
[BlackElo "1950"]
[Annotator "RC"]
[PlyCount "30"]
[EventDate "2024.03.26"]
[EventType "tourn"]
[EventCountry "USA"]
[SourceTitle "playchess.com"]
[Source "ChessBase"]
[SourceQuality "1"]
[TimeControl "5400+30"]

1. Nf3 {[%emt 1:31:00]} d5 {[%emt 1:31:00]} 2. d4 c5 {[%emt 0:00:30]} 3. c4 {[%emt 0:01:00]} e6 {[%emt 0:00:30]} 4. cxd5 {[%emt 0:00:30]} exd5 {[%emt 0:00:30]} 5. g3 {[%emt 0:00:30]} Nf6 {[%emt 0:00:30]} 6. Bg2 {[%emt 0:00:30]} Nc6 {[%emt 0:00:30]} 7. O-O {[%emt 0:00:30]} Be7 {[%emt 0:00:30]} 8. dxc5 {[%emt 0:00:30]} Bxc5 {[%emt 0:00:30]} 9. Nc3 {[%emt 0:00:30]} O-O {[%emt 0:00:30]} 10. Na4 {[%emt 0:00:30]} Bb6 {[%emt 0:00:30]} 11. Bg5 {[%emt 0:00:30]} d4 {[%emt 0:00:30]} 12. Nxb6 {[%emt 0:00:30]} Qxb6 {[%emt 0:00:30]} 13. Bxf6 {[%emt 0:00:30]} gxf6 {[%emt 0:00:30]} 14. Qd2 {[%emt 0:00:30]} Kg7 {[%emt 0:00:30]} 15. Rfd1 {[%emt 0:00:30]} Rd8 {[%emt 0:00:30]} 1/2-1/2

[Event "1000GM Spring IM-D 2024"]
[Site "New York"]
[Date "2024.03.28"]
[Round "2.3"]
[White "Shangin, Lev"]
[Black "Polyik, Peter"]
[Result "1-0"]
[ECO "D38"]
[WhiteElo "1994"]
[BlackElo "2295"]
[Annotator "RC"]
[PlyCount "69"]
[EventDate "2024.03.26"]
[EventType "tourn"]
[EventCountry "USA"]
[SourceTitle "playchess.com"]
[Source "ChessBase"]
[SourceQuality "1"]
[TimeControl "5400+30"]

1. d4 {[%emt 0:00:15]} Nf6 {[%emt 0:04:50]} 2. c4 {[%emt 0:00:40]} e6 {[%emt 0:00:07]} 3. Nf3 {[%emt 0:00:42]} d5 {[%emt 0:02:13]} 4. Nc3 {[%emt 0:00:31]} Bb4 {[%emt 0:00:34]} 5. cxd5 {[%emt 0:00:58]} exd5 {[%emt 0:00:07]} 6. Bg5 {[%emt 0:00:51]} Qd6 {[%emt 0:00:33]} 7. Bxf6 {[%emt 0:04:50]} Qxf6 {[%emt 0:00:11]} 8. Qb3 {[%emt 0:01:23]} Qb6 {[%emt 0:07:45]} 9. e3 {[%emt 0:05:50]} c6 {[%emt 0:02:05]} 10. Bd3 {[%emt 0:05:58]} Nd7 {[%emt 0:17:24]} 11. O-O {[%emt 0:05:47]} Be7 {[%emt 0:02:55]} 12. Qc2 {[%emt 0:05:29]} Nf6 {[%emt 0:04:27]} 13. Ne5 {[%emt 0:05:40]} O-O {[%emt 0:03:05]} 14. f4 {[%emt 0:02:56]} Qd8 {[%emt 0:08:31]} 15. Na4 {[%emt 0:04:58]} Re8 {[%emt 0:05:35]} 16. Kh1 {[%emt 0:08:06]} Bd6 {[%emt 0:04:51]} 17. Rf3 {[%emt 0:07:47]} Ne4 {[%emt 0:11:08]} 18. Bxe4 {[%emt 0:05:49]} dxe4 {[%emt 0:00:04]} 19. Rff1 {[%emt 0:00:53]} Be6 {[%emt 0:13:25]} 20. Nc5 {[%emt 0:06:00]} Bxc5 {[%emt 0:01:14]} 21. Qxc5 {[%emt 0:01:18]} Qb6 {[%emt 0:03:26]} 22. Qc2 {[%emt 0:04:29]} Qa6 {[%emt 0:02:33]} 23. f5 {[%emt 0:01:42]} Bd5 {[%emt 0:00:06]} 24. f6 {[%emt 0:01:06]} gxf6 {[%emt 0:03:17]} 25. Rxf6 {[%emt 0:00:50]} Re6 {[%emt 0:00:07]} 26. Qf2 {[%emt 0:02:39]} Rxf6 {[%emt 0:00:44]} 27. Qxf6 {[%emt 0:00:08]} Qe2 {[%emt 0:00:27]} 28. Rf1 {[%emt 0:02:31]} Rf8 {[%emt 0:01:50]} 29. h3 {[%emt 0:03:21]} Be6 {[%emt 0:00:19]} 30. Rf4 {[%emt 0:01:11]} Qxe3 {[%emt 0:01:02]} 31. Ng4 {[%emt 0:00:15]} Qc1+ {[%emt 0:00:30]} 32. Kh2 {[%emt 0:01:23]} Rc8 {[%emt 0:00:32]} 33. Qh6 {[%emt 0:01:14]} Kh8 {[%emt 0:00:10]} 34. Nf6 {[%emt 0:00:09]} Bf5 {[%emt 0:00:07]} 35. Nh5 {[%emt 0:00:22]} 1-0

[Event "1000GM Spring IM-D 2024"]
[Site "New York"]
[Date "2024.03.28"]
[Round "2.4"]
[White "Lapshun, Yury"]
[Black "Espinosa, Pedro"]
[Result "0-1"]
[ECO "D12"]
[WhiteElo "2332"]
[BlackElo "2229"]
[Annotator "RC"]
[PlyCount "34"]
[EventDate "2024.03.26"]
[EventType "tourn"]
[EventCountry "USA"]
[SourceTitle "playchess.com"]
[Source "ChessBase"]
[SourceQuality "1"]
[TimeControl "5400+30"]

1. d4 {[%emt 1:31:00]} d5 {[%emt 1:31:00]} 2. Nf3 {[%emt 0:00:30]} Nf6 {[%emt 0:00:30]} 3. e3 {[%emt 0:00:30]} c6 {[%emt 0:00:30]} 4. c4 {[%emt 0:00:30]} Bf5 {[%emt 0:00:30]} 5. Nc3 {[%emt 0:00:30]} e6 {[%emt 0:00:30]} 6. Qb3 {[%emt 0:00:30]} Qc7 {[%emt 0:00:30]} 7. Nh4 {[%emt 0:00:30]} Bg6 {[%emt 0:00:30]} 8. Bd2 {[%emt 0:00:30]} Nbd7 {[%emt 0:00:30]} 9. Rc1 {[%emt 0:00:30]} Rc8 {[%emt 0:00:30]} 10. g3 {[%emt 0:00:30]} Be7 {[%emt 0:00:30]} 11. Nxg6 {[%emt 0:00:30]} hxg6 {[%emt 0:00:30]} 12. Bg2 {[%emt 0:00:30]} Nb6 {[%emt 0:00:30]} 13. cxd5 {[%emt 0:00:30]} exd5 {[%emt 0:00:30]} 14. Nxd5 {[%emt 0:00:30]} Nbxd5 {[%emt 0:00:30]} 15. e4 {[%emt 0:00:30]} Nb6 {[%emt 0:00:30]} 16. O-O {[%emt 0:00:30]} Qd7 {[%emt 0:00:30]} 17. Bc3 {[%emt 0:00:30]} O-O {[%emt 0:00:30]} 0-1

[Event "1000GM Spring IM-D 2024"]
[Site "New York"]
[Date "2024.03.28"]
[Round "2.5"]
[White "Bonin, Jay"]
[Black "Cherukuri, Nitesh"]
[Result "1/2-1/2"]
[ECO "E92"]
[WhiteElo "2154"]
[BlackElo "2000"]
[Annotator "RC"]
[PlyCount "85"]
[EventDate "2024.03.26"]
[EventType "tourn"]
[EventCountry "USA"]
[SourceTitle "playchess.com"]
[Source "ChessBase"]
[SourceQuality "1"]
[TimeControl "5400+30"]

1. d4 {[%emt 0:00:30]} Nf6 {[%emt 0:00:00]} 2. Nf3 {[%emt 0:00:00]} g6 {[%emt 0:00:00]} 3. c4 {[%emt 0:00:00]} Bg7 {[%emt 0:00:06]} 4. Nc3 {[%emt 0:00:00]} O-O {[%emt 0:00:08]} 5. e4 {[%emt 0:00:00]} d6 {[%emt 0:00:03]} 6. Be2 {[%emt 0:00:00]} e5 {[%emt 0:00:07]} 7. dxe5 {[%emt 0:00:03]} dxe5 {[%emt 0:00:05]} 8. Qxd8 {[%emt 0:00:03]} Rxd8 {[%emt 0:00:03]} 9. Bg5 {[%emt 0:00:05]} Be6 {[%emt 0:00:15]} 10. Nd5 {[%emt 0:01:34]} Bxd5 {[%emt 0:00:06]} 11. cxd5 {[%emt 0:00:06]} c6 {[%emt 0:00:04]} 12. Bc4 {[%emt 0:00:35]} b5 {[%emt 0:01:47]} 13. Bb3 {[%emt 0:00:11]} a5 {[%emt 0:01:21]} 14. a4 {[%emt 0:09:44]} bxa4 {[%emt 0:07:43]} 15. Rxa4 {[%emt 0:02:13]} Nbd7 {[%emt 0:04:42]} 16. dxc6 {[%emt 0:03:04]} Nc5 {[%emt 0:01:36]} 17. Ra3 {[%emt 0:01:48]} Nxb3 {[%emt 0:03:05]} 18. Rxb3 {[%emt 0:00:12]} Rac8 {[%emt 0:00:45]} 19. Rb6 {[%emt 0:05:49]} Rd6 {[%emt 0:01:55]} 20. Bxf6 {[%emt 0:00:55]} Bxf6 {[%emt 0:00:27]} 21. Ke2 {[%emt 0:00:09]} Rdxc6 {[%emt 0:00:49]} 22. Rxc6 {[%emt 0:00:02]} Rxc6 {[%emt 0:00:08]} 23. Kd3 {[%emt 0:01:12]} Rb6 {[%emt 0:01:47]} 24. Kc2 {[%emt 0:00:55]} Rb4 {[%emt 0:00:54]} 25. Re1 {[%emt 0:00:37]} Kf8 {[%emt 0:02:28]} 26. Nd2 {[%emt 0:03:36]} Be7 {[%emt 0:04:08]} 27. f3 {[%emt 0:09:01]} a4 {[%emt 0:03:28]} 28. Ra1 {[%emt 0:02:44]} Bc5 {[%emt 0:03:00]} 29. Nb1 {[%emt 0:02:34]} Rc4+ {[%emt 0:00:57]} 30. Nc3 {[%emt 0:05:33]} a3 {[%emt 0:00:25]} 31. Kd3 {[%emt 0:02:13]} Rd4+ {[%emt 0:00:41]} 32. Kc2 {[%emt 0:00:19]} axb2 {[%emt 0:00:30]} 33. Rb1 {[%emt 0:00:46]} Rc4 {[%emt 0:07:16]} 34. Rxb2 {[%emt 0:00:28]} Bd4 {[%emt 0:02:07]} 35. Rb3 {[%emt 0:00:08]} Ke7 {[%emt 0:02:07]} 36. Kd3 {[%emt 0:00:13]} Rxc3+ {[%emt 0:01:19]} 37. Rxc3 {[%emt 0:00:05]} Bxc3 {[%emt 0:00:05]} 38. Kxc3 {[%emt 0:00:02]} Kd6 {[%emt 0:00:07]} 39. Kb4 {[%emt 0:00:06]} Kc6 {[%emt 0:00:04]} 40. Kc4 {[%emt 0:00:06]} g5 {[%emt 0:03:00]} 41. g3 {[%emt 0:02:20]} h5 {[%emt 0:00:43]} 42. h3 {[%emt 0:00:55]} h4 {[%emt 0:00:20]} 43. g4 {[%emt 0:00:31]} 1/2-1/2

[Event "1000GM Spring IM-D 2024"]
[Site "New York"]
[Date "2024.03.28"]
[Round "2.6"]
[White "Ho, Cooper"]
[Black "Khodzhamkuliev, Bahadur"]
[Result "1/2-1/2"]
[ECO "B60"]
[WhiteElo "2004"]
[BlackElo "2159"]
[Annotator "RC"]
[PlyCount "32"]
[EventDate "2024.03.26"]
[EventType "tourn"]
[EventCountry "USA"]
[SourceTitle "playchess.com"]
[Source "ChessBase"]
[SourceQuality "1"]
[TimeControl "5400+30"]

1. e4 {[%emt 0:00:15]} c5 {[%emt 0:00:06]} 2. Nf3 {[%emt 0:00:05]} d6 {[%emt 0:00:03]} 3. d4 {[%emt 0:00:05]} cxd4 {[%emt 0:00:04]} 4. Nxd4 {[%emt 0:00:06]} Nf6 {[%emt 0:00:04]} 5. Nc3 {[%emt 0:00:07]} Nc6 {[%emt 0:00:03]} 6. Bg5 {[%emt 0:00:09]} Qb6 {[%emt 0:00:08]} 7. Nb3 {[%emt 0:22:45]} Bd7 {[%emt 0:00:14]} 8. Qd2 {[%emt 0:03:50]} e6 {[%emt 0:00:30]} 9. O-O-O {[%emt 0:02:37]} Be7 {[%emt 0:07:27]} 10. Bxf6 {[%emt 0:04:42]} gxf6 {[%emt 0:00:30]} 11. Nb5 {[%emt 0:02:46]} O-O-O {[%emt 0:01:23]} 12. a4 {[%emt 0:04:21]} a6 {[%emt 0:01:10]} 13. Nxd6+ {[%emt 0:55:12]} Bxd6 {[%emt 0:00:59]} 14. Qxd6 {[%emt 0:00:00]} Qxf2 {[%emt 0:02:44]} 15. Bc4 {[%emt 0:00:00]} Ne5 {[%emt 0:02:07]} 16. Na5 {[%emt 0:01:30]} Bxa4 {[%emt 0:01:09]} 1/2-1/2

[Event "1000GM Spring IM-D 2024"]
[Site "New York"]
[Date "2024.03.28"]
[Round "2.7"]
[White "Mou, Iris"]
[Black "Urhegyi, Marton"]
[Result "1/2-1/2"]
[ECO "C50"]
[WhiteElo "2216"]
[BlackElo "2258"]
[Annotator "RC"]
[PlyCount "129"]
[EventDate "2024.03.26"]
[EventType "tourn"]
[EventCountry "USA"]
[SourceTitle "playchess.com"]
[Source "ChessBase"]
[SourceQuality "1"]
[TimeControl "5400+30"]

1. e4 {[%emt 0:00:02]} e5 {[%emt 0:05:11]} 2. Nf3 {[%emt 0:00:10]} Nc6 {[%emt 0:00:07]} 3. Bc4 {[%emt 0:00:09]} Bc5 {[%emt 0:00:13]} 4. d3 {[%emt 0:00:10]} Nf6 {[%emt 0:00:30]} 5. Nc3 {[%emt 0:00:18]} d6 {[%emt 0:00:36]} 6. Na4 {[%emt 0:00:27]} Bb6 {[%emt 0:03:56]} 7. a3 {[%emt 0:00:14]} Be6 {[%emt 0:07:45]} 8. Bxe6 {[%emt 0:05:03]} fxe6 {[%emt 0:01:15]} 9. O-O {[%emt 0:00:57]} O-O {[%emt 0:03:16]} 10. b4 {[%emt 0:02:27]} Qe8 {[%emt 0:02:52]} 11. c3 {[%emt 0:07:11]} Kh8 {[%emt 0:04:28]} 12. h3 {[%emt 0:02:50]} Nh5 {[%emt 0:07:15]} 13. Ra2 {[%emt 0:05:35]} Nf4 {[%emt 0:06:08]} 14. Nxb6 {[%emt 0:06:15]} axb6 {[%emt 0:01:32]} 15. Bxf4 {[%emt 0:04:09]} Rxf4 {[%emt 0:01:44]} 16. Re1 {[%emt 0:05:54]} Qg6 {[%emt 0:04:56]} 17. a4 {[%emt 0:08:17]} Raf8 {[%emt 0:03:46]} 18. Re3 {[%emt 0:03:56]} Qh5 {[%emt 0:03:16]} 19. Qe2 {[%emt 0:06:52]} g5 {[%emt 0:20:14]} 20. Nh2 {[%emt 0:01:54]} Qg6 {[%emt 0:02:31]} 21. Rf3 {[%emt 0:06:42]} h5 {[%emt 0:03:08]} 22. g3 {[%emt 0:07:59]} Rxf3 {[%emt 0:07:35]} 23. Nxf3 {[%emt 0:00:08]} g4 {[%emt 0:01:23]} 24. hxg4 {[%emt 0:05:17]} Qxg4 {[%emt 0:01:00]} 25. Nh4 {[%emt 0:02:31]} Qxe2 {[%emt 0:01:01]} 26. Rxe2 {[%emt 0:00:05]} Ra8 {[%emt 0:00:12]} 27. b5 {[%emt 0:05:06]} Nb8 {[%emt 0:01:02]} 28. f4 {[%emt 0:05:10]} Nd7 {[%emt 0:00:39]} 29. fxe5 {[%emt 0:00:24]} dxe5 {[%emt 0:02:42]} 30. Ra2 {[%emt 0:01:54]} Kg7 {[%emt 0:00:21]} 31. Nf3 {[%emt 0:00:35]} Kf6 {[%emt 0:01:49]} 32. Rh2 {[%emt 0:01:42]} Kg6 {[%emt 0:01:59]} 33. Nh4+ {[%emt 0:01:01]} Kh6 {[%emt 0:01:13]} 34. Nf3 {[%emt 0:01:23]} Rxa4 {[%emt 0:00:56]} 35. g4 {[%emt 0:01:31]} Ra1+ {[%emt 0:00:09]} 36. Kg2 {[%emt 0:00:08]} Ra2+ {[%emt 0:00:03]} 37. Kg3 {[%emt 0:00:08]} Rxh2 {[%emt 0:00:10]} 38. Nxh2 {[%emt 0:03:16]} hxg4 {[%emt 0:01:54]} 39. Nxg4+ {[%emt 0:00:11]} Kg5 {[%emt 0:00:08]} 40. Kf3 {[%emt 0:00:16]} c6 {[%emt 0:00:54]} 41. c4 {[%emt 0:00:44]} Kh4 {[%emt 0:00:37]} 42. Nh6 {[%emt 0:01:33]} Kg5 {[%emt 0:00:29]} 43. Nf7+ {[%emt 0:00:46]} Kf6 {[%emt 0:00:29]} 44. Nd6 {[%emt 0:00:34]} Nc5 {[%emt 0:00:33]} 45. Ke3 {[%emt 0:00:21]} Ke7 {[%emt 0:00:28]} 46. Nc8+ {[%emt 0:00:21]} Kd7 {[%emt 0:00:25]} 47. Nxb6+ {[%emt 0:00:06]} Kc7 {[%emt 0:00:15]} 48. Na8+ {[%emt 0:00:04]} Kb8 {[%emt 0:00:45]} 49. Nb6 {[%emt 0:00:05]} Kc7 {[%emt 0:00:33]} 50. Na8+ {[%emt 0:00:05]} Kd6 {[%emt 0:00:28]} 51. Nb6 {[%emt 0:00:59]} Nb3 {[%emt 0:00:36]} 52. bxc6 {[%emt 0:00:36]} bxc6 {[%emt 0:00:19]} 53. Na4 {[%emt 0:00:19]} Kc7 {[%emt 0:00:40]} 54. Nc3 {[%emt 0:00:46]} Kb6 {[%emt 0:00:28]} 55. Ne2 {[%emt 0:00:55]} Kc5 {[%emt 0:00:20]} 56. Ng1 {[%emt 0:00:34]} Nd4 {[%emt 0:00:26]} 57. Nh3 {[%emt 0:00:21]} Kb4 {[%emt 0:00:43]} 58. Ng5 {[%emt 0:00:11]} Kc3 {[%emt 0:00:21]} 59. Nf7 {[%emt 0:00:22]} Nc2+ {[%emt 0:00:21]} 60. Ke2 {[%emt 0:00:08]} Nd4+ {[%emt 0:00:41]} 61. Ke3 {[%emt 0:00:07]} Nc2+ {[%emt 0:00:06]} 62. Ke2 {[%emt 0:00:05]} Nd4+ {[%emt 0:01:01]} 63. Ke3 {[%emt 0:00:04]} Nc2+ {[%emt 0:00:26]} 64. Ke2 {[%emt 0:00:06]} Nd4+ {[%emt 0:00:27]} 65. Ke3 {[%emt 0:04:31]} 1/2-1/2

[Event "1000GM Spring IM-D 2024"]
[Site "New York"]
[Date "2024.03.28"]
[Round "2.8"]
[White "Jakovljevic, Vlado"]
[Black "Gaw, Chloe"]
[Result "1-0"]
[ECO "B38"]
[WhiteElo "2356"]
[BlackElo "2092"]
[Annotator "RC"]
[PlyCount "99"]
[EventDate "2024.03.26"]
[EventType "tourn"]
[EventCountry "USA"]
[SourceTitle "playchess.com"]
[Source "ChessBase"]
[SourceQuality "1"]
[TimeControl "5400+30"]

1. c4 {[%emt 0:00:01]} c5 {[%emt 0:00:08]} 2. Nf3 {[%emt 0:00:07]} Nc6 {[%emt 0:00:14]} 3. d4 {[%emt 0:00:07]} cxd4 {[%emt 0:00:24]} 4. Nxd4 {[%emt 0:00:05]} g6 {[%emt 0:03:49]} 5. e4 {[%emt 0:00:09]} Bg7 {[%emt 0:00:08]} 6. Be3 {[%emt 0:00:04]} d6 {[%emt 0:03:51]} 7. Nc3 {[%emt 0:00:33]} Nf6 {[%emt 0:00:49]} 8. Be2 {[%emt 0:00:10]} a6 {[%emt 0:00:42]} 9. O-O {[%emt 0:00:20]} O-O {[%emt 0:00:38]} 10. f3 {[%emt 0:00:49]} Bd7 {[%emt 0:00:48]} 11. Qd2 {[%emt 0:00:38]} Rb8 {[%emt 0:04:58]} 12. Rfd1 {[%emt 0:13:52]} Nxd4 {[%emt 0:03:53]} 13. Bxd4 {[%emt 0:00:07]} Bc6 {[%emt 0:01:29]} 14. b4 {[%emt 0:09:34]} b5 {[%emt 0:05:02]} 15. cxb5 {[%emt 0:14:11]} Bxb5 {[%emt 0:03:27]} 16. Nxb5 {[%emt 0:01:13]} axb5 {[%emt 0:00:10]} 17. Rac1 {[%emt 0:02:02]} Qd7 {[%emt 0:02:21]} 18. Rc2 {[%emt 0:13:15]} Rfc8 {[%emt 0:08:07]} 19. Rdc1 {[%emt 0:00:59]} Rxc2 {[%emt 0:01:13]} 20. Rxc2 {[%emt 0:00:12]} Ne8 {[%emt 0:01:20]} 21. Be3 {[%emt 0:01:53]} Nc7 {[%emt 0:02:25]} 22. g3 {[%emt 0:07:49]} Ne6 {[%emt 0:05:33]} 23. Kg2 {[%emt 0:02:52]} Qb7 {[%emt 0:02:30]} 24. Qd3 {[%emt 0:02:30]} Qa6 {[%emt 0:08:45]} 25. Qd2 {[%emt 0:09:31]} Qa4 {[%emt 0:03:46]} 26. Bd1 {[%emt 0:00:09]} Qa6 {[%emt 0:00:40]} 27. Qd3 {[%emt 0:02:16]} Ra8 {[%emt 0:02:05]} 28. Qd5 {[%emt 0:07:03]} Rb8 {[%emt 0:02:10]} 29. Qd3 {[%emt 0:01:11]} Ra8 {[%emt 0:00:21]} 30. Bf2 {[%emt 0:02:57]} Be5 {[%emt 0:06:39]} 31. Re2 {[%emt 0:03:43]} Qa3 {[%emt 0:13:11]} 32. Qxb5 {[%emt 0:01:38]} Qc1 {[%emt 0:06:30]} 33. Qd5 {[%emt 0:02:12]} Rb8 {[%emt 0:01:40]} 34. Be3 {[%emt 0:01:13]} Qc3 {[%emt 0:04:42]} 35. Bd2 {[%emt 0:01:58]} Qa1 {[%emt 0:00:43]} 36. Bb3 {[%emt 0:00:31]} Bd4 {[%emt 0:01:25]} 37. Be1 {[%emt 0:00:30]} Rc8 {[%emt 0:01:07]} 38. Bf2 {[%emt 0:00:31]} Bxf2 {[%emt 0:00:45]} 39. Rxf2 {[%emt 0:00:16]} Rc1 {[%emt 0:00:12]} 40. Qa8+ {[%emt 0:00:42]} Kg7 {[%emt 0:00:25]} 41. Bxe6 {[%emt 0:00:28]} Rg1+ {[%emt 0:00:27]} 42. Kh3 {[%emt 0:00:02]} Qe5 {[%emt 0:01:06]} 43. Qd5 {[%emt 0:00:25]} Qxe6+ {[%emt 0:00:29]} 44. Qxe6 {[%emt 0:00:06]} fxe6 {[%emt 0:00:02]} 45. Rb2 {[%emt 0:00:11]} Rc1 {[%emt 0:01:14]} 46. b5 {[%emt 0:00:15]} Kf8 {[%emt 0:00:12]} 47. b6 {[%emt 0:00:15]} Rc8 {[%emt 0:00:04]} 48. a4 {[%emt 0:00:13]} Ke8 {[%emt 0:00:04]} 49. a5 {[%emt 0:00:07]} Kd7 {[%emt 0:00:06]} 50. a6 {[%emt 0:00:13]} 1-0